fUSD/lending_fUSD_20250228
["ID","MTS","AMOUNT","RATE_DAILY","PERIOD"]
[354847040,1740732631975,-7030.24034732,0.000488,120]
[354847082,1740732637525,-392.905,0.000488,120]
[354847083,1740732637538,-276.0866141,0.000488,120]
[354847084,1740732637632,-694.44,0.000488,120]
[354847109,1740732639611,-789.59291621,0.000488,120]
[354847110,1740732639622,-397.27488283,0.000488,120]
[354847134,1740732642548,-31681.94126297,0.000488,120]
[354847154,1740732644979,-106739.84968516,0.000488,120]
[354847155,1740732644989,-1867.54477288,0.000488,2]
[354847156,1740732644999,-202.10429894,0.000489,11]
[354847157,1740732645010,-2000.0,0.00049155,120]
[354847158,1740732645020,-200.0,0.00049289,2]
[354847159,1740732645032,-860.45406378,0.00049289,2]
[354847160,1740732645041,-150.0,0.00049559,2]
[354847161,1740732645050,-269.85,0.00049719,2]
[354847162,1740732645060,-164.77,0.00049746,2]
[354847163,1740732645070,-3395.05,0.00049896,2]
[354847164,1740732645079,-19398.016,0.000499,2]
[354847165,1740732645088,-7303.3771859,0.0004992,15]
[354847166,1740732645098,-19954.35668805,0.0005,120]
[354847167,1740732645109,-873.090994,0.0005,120]
[354847168,1740732645122,-27291.89432953,0.0005,120]
[354847169,1740732645133,-781.62992474,0.0005,120]
[354847170,1740732645144,-1723.82789889,0.0005,120]
[354847171,1740732645155,-1973.4,0.0005,120]
[354847172,1740732645166,-267.12282446,0.0005,120]
[354847174,1740732645958,-55136.44080398,0.0005,120]
[354847175,1740732645992,-647.13502212,0.0005,120]
[354847176,1740732646006,-7617.46154993,0.0005,120]
[354847177,1740732646016,-382.68539994,0.0005002,22]
[354847178,1740732646102,-502.05350896,0.0005002,22]
[354847179,1740732646112,-519.17,0.0005012,2]
[354847180,1740732646121,-1156.90563592,0.00050303,2]
[354847186,1740732726845,250.0,0.00021,2]
[354847187,1740732727941,300.0,0.00023,2]
[354847188,1740732729014,350.0,0.00025,2]
[354847196,1740733263465,800.0,0.00026986,120]
[354847197,1740733390319,248.33,0.00039452,2]
[354847224,1740733831791,-382.104,0.000485,83]
[354847225,1740733831803,-342.396,0.000486,2]
[354847226,1740733831815,-692.5,0.000486,2]
[354847227,1740733831844,-815.18087564,0.000486,2]
[354847242,1740733837682,-350.11422436,0.000486,2]
[354847243,1740733837693,-755.6269,0.000487,2]
[354847244,1740733837702,-7050.51006179,0.000487,2]
[354847245,1740733837735,-7947.94,0.000487,2]
[354847403,1740733839618,-475.54831791,0.000487,2]
[354847424,1740733839826,-1761.1600203,0.000487,2]
[354847426,1740733839836,-1000.0,0.000487,2]
[354847428,1740733839845,-202.10429894,0.000499,11]
[354847430,1740733839855,-4472.0,0.0005,120]
[354847432,1740733839864,-668.26256,0.0005,69]
[354847434,1740733839875,-200.0,0.0005,120]
[354847436,1740733839884,-151.0,0.0005063,120]
[354847438,1740733839893,-200.0,0.000507,30]
[354847440,1740733839903,-327.39,0.000507,2]
[354847442,1740733839913,-299.99,0.000507,120]
[354847444,1740733839922,-574.149872,0.000512,2]
[354847446,1740733839932,-152.0,0.00051674,3]
[354847448,1740733839941,-154.56,0.00052088,2]
[354847450,1740733839950,-150.0,0.00052788,2]
[354847452,1740733839959,-450.0,0.00052788,2]
[354847454,1740733839968,-156.59,0.00053117,2]
[354847456,1740733839978,-200.0,0.00053152,2]
[354847458,1740733839987,-2857.19913595,0.0005324,120]
[354847459,1740733839996,-473.67,0.00053428,2]
[354847461,1740733840006,-1542.69196018,0.00053474,30]
[354847464,1740733840018,-2457.30803982,0.00053474,30]
[354847466,1740733840027,-164.77,0.00053483,2]
[354847468,1740733840036,-2751.0,0.00053502,120]
[354847470,1740733840046,-150.0,0.00053541,7]
[354847472,1740733840055,-887.15,0.00053572,2]
[354847474,1740733840064,-424.6,0.00053587,120]
[354847475,1740733840073,-160.73,0.00053595,120]
[354847477,1740733840084,-1105.19466133,0.00053698,30]
[354847479,1740733840093,-5000.0,0.00053837,120]
[354847481,1740733840102,-250.0,0.00053859,120]
[354847483,1740733840111,-156.59,0.00053876,2]
[354847485,1740733840120,-258.92,0.0005392,120]
[354847487,1740733840129,-150.0,0.00053952,2]
[354847488,1740733840138,-181.24,0.00053969,2]
[354847489,1740733840148,-809.76138224,0.00054006,120]
[354847490,1740733840159,-190.23861776,0.00054006,120]
[354847491,1740733840169,-402.92243853,0.00054013,2]
[354847492,1740733840179,-1801.72291109,0.00054013,2]
[354847493,1740733840190,-3198.27708891,0.00054013,2]
[354847494,1740733840201,-316.427999,0.00054013,2]
[354847495,1740733840211,-794.5699955,0.00054013,2]
[354847529,1740733842804,-9396.3196697,0.00054013,2]
[354847530,1740733842816,-2120.38,0.00054013,2]
[354847531,1740733842828,-1597.403564,0.00054013,2]
[354847532,1740733842855,-4271.97633327,0.00054013,2]
[354847533,1740733842866,-1011.62523833,0.00054504,30]
[354847534,1740733842876,-156.59,0.00054634,2]
[354847535,1740733842885,-380.0,0.00054767,2]
[354847536,1740733842897,-320.01,0.00054773,120]
[354847537,1740733842906,-500.0,0.00054794,120]
[354847538,1740733842918,-505.9772295,0.00054794,120]
[354847539,1740733842927,-504.92618785,0.00054794,120]
[354847540,1740733842938,-500.0,0.00054794,120]
[354847541,1740733842949,-500.0,0.00054794,120]
[354847542,1740733842960,-500.0,0.00054794,120]
[354847543,1740733842971,-500.0,0.00054794,120]
[354847544,1740733842981,-500.0,0.00054794,120]
[354847545,1740733842990,-269.85,0.00054852,120]
[354847546,1740733842999,-368.0,0.00054959,120]
[354847547,1740733843011,-267.1146,0.00054968,2]
[354847548,1740733843020,-22424.7248,0.00054968,2]
[354847549,1740733843031,-668.26256,0.00055,69]
[354847550,1740733843040,-496.64958052,0.00055068,120]
[354847551,1740733843049,-500.0,0.00055068,120]
[354847552,1740733843059,-503.96070146,0.00055068,120]
[354847553,1740733843068,-500.0,0.00055068,120]
[354847554,1740733843078,-461.60870067,0.00055342,120]
[354847555,1740733843087,-156.59,0.00055393,2]
[354847556,1740733843096,-154.2318,0.00055516,2]
[354847557,1740733843106,-154.56,0.00055672,2]
[354847558,1740733843115,-1646.597,0.00055681,2]
[354847559,1740733843125,-302.935,0.00055681,2]
[354847560,1740733843135,-885.6449,0.00055681,120]
[354847561,1740733843144,-169.16290025,0.00055681,15]
[354847562,1740733843154,-24497.00867249,0.00055781,7]
[354847589,1740733845915,-150.0,0.00053483,2]
[354847590,1740733845924,-382.83646613,0.00055781,7]
[354847591,1740733845935,-505.6730717,0.00055781,7]
[354847592,1740733845947,-1529.31359189,0.00055781,7]
[354847593,1740733846022,-1049.99669866,0.00055781,7]
[354847599,1740734414371,219.72,0.00039452,2]
[354847600,1740734497006,150.0,0.0004,2]
[354847601,1740734505426,150.0,0.00045,2]
[354847603,1740734531288,250.0,0.00021,2]
[354847604,1740734532354,300.0,0.00023,2]
[354847605,1740734615645,150.0,0.00045,2]
[354847606,1740734708936,24211.91579357,0.00015,2]
[354847607,1740734708964,11865.44245397,0.00015,2]
[354847608,1740734708992,29265.82302965,0.00015,2]
[354847609,1740734709019,42705.64600823,0.00015,2]
[354847610,1740734709047,50000.0,0.00015,2]
[354847611,1740734709074,49280.10940294,0.00015,2]
[354847612,1740734709110,50000.0,0.00015,2]
[354847614,1740734709143,49390.5,0.00015,2]
[354847615,1740734709172,49747.6102085,0.00015,2]
[354847616,1740734709201,48697.60616,0.00015,2]
[354847617,1740734709230,48926.33067588,0.00015,2]
[354847618,1740734709258,49284.220444,0.00015,2]
[354847619,1740734709287,48684.220444,0.00015,2]
[354847620,1740734709315,49400.0,0.00015,2]
[354847621,1740734709345,34791.13091749,0.00015,2]
[354847623,1740734766036,-300.0,0.00014999,2]
[354847624,1740734766063,-1332.17249088,0.00014999,5]
[354847625,1740734766090,-133157.82750912,0.00015,2]
[354847627,1740734800256,-325.8947,0.000149,2]
[354847628,1740734800285,-238.0478145,0.00014999,2]
[354847629,1740734800316,-49436.0574855,0.00015,2]
[354847630,1740734801345,-50000.0,0.00015,2]
[354847631,1740734802229,-50000.0,0.00015,2]
[354847632,1740734803535,-50000.0,0.00015,2]
[354847633,1740734804572,-50000.0,0.00015,2]
[354847639,1740734860759,1000.0,0.0001,2]
[354847644,1740734890204,546.55202634,9.9e-05,2]
[354847701,1740734997521,-300.0,0.00014899,2]
[354847703,1740734997554,-267.1146,0.000149,2]
[354847705,1740734997587,-7952.48137751,0.000149,2]
[354847707,1740734997627,-8519.59597751,0.000149,2]
[354847709,1740734997663,-4614.29142818,0.000149,2]
[354847717,1740735031935,-300.0,0.00014899,2]
[354847723,1740735031962,-223.7,0.000149,2]
[354847729,1740735032008,-602.74473449,0.000149,2]
[354847734,1740735032068,-363.36010393,0.000149,2]
[354847735,1740735032081,-148.55117838,0.000149,2]
[354847736,1740735032091,-616.85920178,0.000149,2]
[354847737,1740735032102,-619.19459822,0.000149,2]
[354847738,1740735032113,-2153.28881528,0.000149,2]
[354847739,1740735032125,-4461.00086335,0.000149,2]
[354847740,1740735032134,-328.06705357,0.000149,2]
[354847741,1740735032144,-1177.81194802,0.000149,2]
[354847742,1740735032154,-1586.64936643,0.0001499,2]
[354847743,1740735032166,-525.49656863,0.00015,2]
[354847744,1740735032178,-2814.91274644,0.00015,2]
[354847745,1740735032193,-1102.14874176,0.00015,2]
[354847746,1740735032205,-6834.64085429,0.00015,2]
[354847747,1740735032218,-2614.97457783,0.00015,2]
[354847748,1740735032230,-3653.74999986,0.00015,2]
[354847749,1740735032241,-3592.79863,0.00015,2]
[354847750,1740735032252,-2427.49534836,0.00015,2]
[354847751,1740735032263,-772.1419729,0.00015,2]
[354847752,1740735032275,-467.0,0.00015,2]
[354847753,1740735032286,-319.69449779,0.00015,2]
[354847754,1740735032297,-19919.32582477,0.00015,2]
[354847766,1740735037785,-1290.13359188,0.00015,2]
[354847767,1740735037842,-64444.63712605,0.00015,2]
[354847768,1740735037902,-23624.3013786,0.00015,2]
[354847769,1740735037980,-56150.3016226,0.00015,2]
[354847942,1740735039907,-2167.80562934,0.00015,2]
[354847944,1740735039920,-534.10549594,0.00015,2]
[354847967,1740735040132,-6452.70000001,0.00015,2]
[354847974,1740735040192,-242440.27471992,0.00015,2]
[354847982,1740735040251,-8033.32419515,0.00015,2]
[354847999,1740735040416,-253.08816629,0.00015,2]
[354848002,1740735040429,-804.0,0.00015,2]
[354848004,1740735040440,-298.85506343,0.00015,2]
[354848099,1740735042975,-2139.90000001,0.00015,2]
[354848100,1740735043755,-60306.02987107,0.00015,2]
[354848108,1740735046146,-8012.45,0.00015,2]
[354848110,1740735046268,-18131.86614884,0.00015,2]
[354848111,1740735046280,-3974.2579294,0.00015,2]
[354848112,1740735046292,-1588.52763635,0.00015,2]
[354848113,1740735046333,-496.9162488,0.00015,2]
[354848114,1740735046567,-958.20679999,0.00015,2]
[354848393,1740735264526,657.52949682,0.000148,2]
[354848403,1740735588257,-300.0,0.00014899,2]
[354848404,1740735588282,-150.0,0.000149,2]
[354848405,1740735588308,-1096.0,0.000149,2]
[354848408,1740735626491,-35784.9814,0.000149,2]
[354848409,1740735626518,-169.16290025,0.000149,2]
[354848410,1740735626544,-160.516,0.000149,2]
[354848411,1740735626570,-867.0617,0.000149,2]
[354848412,1740735626599,-5952.86071074,0.000149,2]
[354848413,1740735626630,-328.06705356,0.000149,2]
[354848414,1740735626659,-7773.18515068,0.000149,2]
[354848415,1740735626685,-3598.07649361,0.000149,2]
[354848416,1740735626716,-35366.08859116,0.00015,2]
[354848420,1740736105958,-300.0,0.00014899,2]
[354848421,1740736105986,-169.16290021,0.000149,2]
[354848422,1740736106012,-3686.81038088,0.000149,2]
[354848501,1740736232248,-300.0,0.00014899,2]
[354848502,1740736232258,-150.0,0.000149,2]
[354848503,1740736232268,-1670.76425884,0.000149,2]
[354848504,1740736232278,-623.0561,0.000149,2]
[354848505,1740736232288,-632.8672,0.000149,2]
[354848506,1740736232298,-328.06705356,0.000149,2]
[354848507,1740736232308,-2500.0,0.000149,2]
[354848508,1740736232317,-154.2318,0.000149,2]
[354848509,1740736232327,-5211.32603056,0.00015,2]
[354848510,1740736232436,-6046.4311931,0.00015,2]
[354848511,1740736232449,-1305.0,0.00015,2]
[354848512,1740736232463,-864.56962745,0.00015,2]
[354848513,1740736232474,-28775.2845688,0.00015,2]
[354848514,1740736232484,-9999.37675158,0.00015,2]
[354848517,1740736238094,-435.63975134,0.00015,2]
[354848518,1740736238108,-92523.20194785,0.00015,2]
[354848519,1740736238155,-8083.804962,0.00015,2]
[354848520,1740736238302,-0.00535996,0.00015,2]
[354848521,1740736238402,-16091.8,0.00015,2]
[354848734,1740736240212,-1181.7947522,0.00015,2]
[354848763,1740736240417,-2771.12160008,0.00015,2]
[354848765,1740736240435,-816.0,0.00015,2]
[354848768,1740736240448,-730.0,0.00015,2]
[354849188,1740736244193,-735.0,0.00015,2]
[354849430,1740736246554,-121299.99998129,0.00015,2]
[354849432,1740736246566,-810.46269001,0.00015,2]
[354849448,1740736246718,-756.78063558,0.00015,2]
[354849455,1740736246775,-397.12819274,0.00015,2]
[354849474,1740736246949,-1000.0,0.00015,2]
[354850223,1740736435273,1609.88991466,0.000148,2]
[354850250,1740737326040,-150.0,0.00014893,2]
[354850251,1740737326062,-505.0397,0.000149,2]
[354850252,1740737326084,-1706.4479,0.000149,2]
[354850253,1740737326107,-441.3802,0.000149,2]
[354850254,1740737326131,-215.94161825,0.000149,2]
[354850255,1740737326156,-159.06755661,0.000149,2]
[354850256,1740737326183,-2500.0,0.000149,2]
[354850257,1740737326206,-6124.14338508,0.000149,2]
[354850258,1740737326231,-64317.91995799,0.00015,2]
[354850259,1740737326252,-222.41330306,0.00015,2]
[354850260,1740737326275,-177947.00790295,0.00015,2]
[354850261,1740737326297,-710.63847606,0.00015,2]
[354850271,1740737392979,-723.9511,0.0001485,2]
[354850272,1740737393006,-1050.10434933,0.000149,2]
[354850282,1740737432432,-308.37785067,0.000149,2]
[354850283,1740737432442,-150.0,0.00015057,2]
[354850284,1740737432452,-150.0,0.00015934,2]
[354850286,1740737432462,-450.0,0.00016383,2]
[354850288,1740737432473,-450.0,0.00016383,2]
[354850290,1740737432483,-450.0,0.0001639,2]
[354850292,1740737432493,-150.0,0.0001639,2]
[354850294,1740737432504,-1532.71355445,0.000168,2]
[354850296,1740737432514,-723.95111,0.0001735,2]
[354850298,1740737432523,-1305.11489633,0.00018632,3]
[354850299,1740737432532,-203.8245917,0.000187,2]
[354850302,1740737432555,-723.95111,0.0001985,2]
[354850304,1740737432565,-1002.93631834,0.00019855,2]
[354850306,1740737432574,-300.0,0.00019999,2]
[354850307,1740737432585,-769.150728,0.0002,4]
[354850308,1740737432594,-150.0,0.0002,2]
[354850309,1740737432604,-250.0,0.00021,2]
[354850310,1740737432613,-420.0,0.00021777,2]
[354850311,1740737432623,-182.69,0.00021918,2]
[354850312,1740737432632,-399.82,0.00022641,2]
[354850313,1740737432641,-219.84753679,0.00023,30]
[354850314,1740737432654,-435.9102804,0.00023,30]
[354850315,1740737432667,-352.71258346,0.00023,30]
[354850316,1740737432679,-587.0,0.00023712,2]
[354850318,1740737432688,-378.93,0.00023831,2]
[354850320,1740737432699,-2000.0,0.00023831,2]
[354850322,1740737432708,-156.59,0.00023831,2]
[354850324,1740737432718,-165.12,0.00023831,2]
[354850326,1740737432728,-515.31,0.00023928,2]
[354850327,1740737432737,-192.29171077,0.00023964,2]
[354850330,1740737432763,-306.45828923,0.00023964,2]
[354850332,1740737432772,-21.77548672,0.00024078,2]
[354850334,1740737432783,-488.90948743,0.00024078,2]
[354850341,1740737438238,-489.31502585,0.00024078,2]
[354850342,1740737438248,-159.06755661,0.000241,2]
[354850343,1740737438259,-15484.21741754,0.0002411,2]
[354850344,1740737438512,-481.56811103,0.0002411,2]
[354850505,1740737440341,-808.02282,0.0002411,2]
[354850507,1740737440353,-1610.52,0.0002411,2]
[354850513,1740737440401,-683.54265089,0.0002411,2]
[354850515,1740737440412,-346.89660003,0.0002411,2]
[354850517,1740737440425,-4485.23240051,0.0002411,2]
[354850519,1740737440435,-301.0,0.00024123,2]
[354850522,1740737440445,-181.24,0.00024135,2]
[354850523,1740737440455,-200.0,0.00024143,2]
[354850526,1740737440466,-159.28,0.00024173,2]
[354850528,1740737440476,-356.79,0.00024251,2]
[354850529,1740737440485,-150.0,0.00024304,7]
[354850532,1740737440495,-356.79,0.00024378,2]
[354850534,1740737440506,-257.32,0.00024475,2]
[354850536,1740737440516,-159.28,0.00024475,2]
[354850538,1740737440525,-150.0,0.00024501,2]
[354850540,1740737440535,-356.79,0.00024506,2]
[354850542,1740737440546,-173.6,0.00024524,2]
[354850544,1740737440556,-250.0,0.00024572,2]
[354850546,1740737440565,-400.99,0.00024584,2]
[354850547,1740737440575,-2668.01,0.00024587,2]
[354850549,1740737440585,-156.59,0.00024625,2]
[354850551,1740737440594,-356.79,0.00024633,2]
[354850554,1740737440610,-659.78,0.00024659,2]
[354850556,1740737440619,-519.17,0.00024697,2]
[354850558,1740737440631,-160.66,0.00024712,30]
[354850560,1740737440641,-356.79,0.00024761,2]
[354850562,1740737440650,-159.28,0.00024777,2]
[354850564,1740737440659,-723.95111,0.0002485,2]
[354850566,1740737440669,-356.79,0.00024889,2]
[354850568,1740737440678,-399.82,0.00024905,2]
[354850570,1740737440687,-150.0,0.00025,2]
[354850572,1740737440700,-150.0,0.00025,2]
[354850574,1740737440709,-356.79,0.00025016,2]
[354850576,1740737440718,-378.93,0.00025023,2]
[354850578,1740737440728,-159.28,0.00025079,2]
[354850580,1740737440737,-356.79,0.00025144,2]
[354850582,1740737440746,-217.952,0.00025252,9]
[354850584,1740737440757,-380.475,0.00025252,9]
[354850586,1740737440767,-356.79,0.00025272,2]
[354850588,1740737440776,-179.01,0.00025292,2]
[354850590,1740737440785,-159.28,0.00025381,2]
[354850593,1740737440795,-356.79,0.00025399,2]
[354850595,1740737440805,-156.59,0.0002542,2]
[354850597,1740737440815,-356.79,0.00025527,2]
[354850599,1740737440824,-356.79,0.00025655,2]
[354850601,1740737440835,-159.28,0.00025684,2]
[354850603,1740737440845,-356.79,0.00025782,2]
[354850605,1740737440854,-823.0,0.0002582,2]
[354850607,1740737440864,-356.79,0.0002591,2]
[354850609,1740737440874,-159.28,0.00025986,2]
[354850611,1740737440883,-356.79,0.00026038,2]
[354850613,1740737440893,-356.79,0.00026165,2]
[354850615,1740737440902,-378.93,0.00026214,2]
[354850617,1740737440912,-156.59,0.00026214,2]
[354850619,1740737440921,-159.28,0.00026288,2]
[354850621,1740737440930,-356.79,0.00026293,2]
[354850623,1740737440940,-356.79,0.00026421,2]
[354850625,1740737440949,-200.0,0.00026447,2]
[354850627,1740737440959,-356.79,0.00026548,2]
[354850629,1740737440968,-159.28,0.0002659,2]
[354850631,1740737440978,-356.79,0.00026676,2]
[354850633,1740737440987,-1000.0,0.00027088,2]
[354850635,1740737440996,-301.0,0.00027138,120]
[354850637,1740737441007,-399.82,0.00027169,2]
[354850639,1740737441017,-723.95111,0.0002735,2]
[354850641,1740737441026,-378.93,0.00027406,2]
[354850643,1740737441035,-257.32,0.00027534,120]
[354850645,1740737441044,-203.82459169,0.000279,4]
[354850647,1740737441054,-518.0,0.00028115,2]
[354850650,1740737441063,-378.93,0.00028597,2]
[354850652,1740737441073,-160.66,0.00029191,30]
[354850654,1740737441082,-399.82,0.00029433,2]
[354850656,1740737441092,-380.0,0.00029781,2]
[354850658,1740737441101,-1332.17249088,0.00029799,15]
[354850660,1740737441111,-9987.4112969,0.000298,2]
[354850662,1740737441123,-1217.4,0.000298,2]
[354850966,1740737444022,-1198.80333878,0.000298,2]
[354851232,1740737446612,-86309.73313441,0.000298,2]
[354851234,1740737446622,-859.22654896,0.000299,2]
[354851236,1740737446633,-150.0,0.0003,2]
[354851238,1740737446643,-1000.0,0.00030098,2]
[354851240,1740737446652,-301.0,0.00030153,120]
[354851242,1740737446662,-34995.87112863,0.00030187,3]
[354851244,1740737446671,-257.32,0.00030593,120]
[354851246,1740737446680,-151.0,0.00030795,7]
[354851248,1740737446690,-151.0,0.00030802,7]
[354851250,1740737446699,-151.0,0.00030802,7]
[354851252,1740737446708,-151.0,0.00030802,7]
[354851254,1740737446718,-151.0,0.00030802,7]
[354851256,1740737446727,-8.44918871,0.00030802,7]
[354851259,1740737446739,-172.86967329,0.00030802,7]
[354851261,1740737446748,-154.2674,0.00030802,7]
[354851263,1740737446757,-153.085248,0.00030802,7]
[354851265,1740737446766,-151.0,0.00030802,7]
[354851267,1740737446776,-151.0,0.00030802,7]
[354851269,1740737446785,-151.0,0.00030802,7]
[354851271,1740737446795,-151.0,0.00030802,7]
[354851273,1740737446804,-151.0,0.00030802,7]
[354851275,1740737446813,-298.786053,0.00030802,7]
[354851277,1740737446823,-30217.0393894,0.00030802,2]
[354851279,1740737446832,-150.46330229,0.00030802,2]
[354851281,1740737446841,-254.07695665,0.00030802,2]
[354851283,1740737446850,-5865.81400012,0.00030802,30]
[354851285,1740737446859,-5347.98743454,0.00030802,2]
[354851287,1740737446868,-399.82,0.00031697,2]
[354851289,1740737446878,-150.0,0.00032,120]
[354851291,1740737446887,-500.0,0.00032507,2]
[354851293,1740737446896,-1014.075,0.00032558,2]
[354851295,1740737446906,-150.0,0.00032558,2]
[354851297,1740737446915,-1000.0,0.00033108,2]
[354851299,1740737446924,-301.0,0.00033169,120]
[354851301,1740737446933,-159.06755661,0.000333,2]
[354851303,1740737446942,-257.32,0.00033653,120]
[354851305,1740737446954,-160.66,0.00033669,120]
[354851307,1740737446963,-399.82,0.00033961,2]
[354851309,1740737446973,-159.987,0.00034053,2]
[354851311,1740737446982,-2029.0,0.00034053,2]
[354851313,1740737446991,-1582.0,0.00034053,2]
[354851315,1740737447000,-640.0,0.00034053,2]
[354851317,1740737447012,-570.0,0.00034053,2]
[354851319,1740737447021,-150.0,0.00034053,2]
[354851321,1740737447030,-785.0,0.00034053,2]
[354851323,1740737447040,-1268.0,0.00034053,2]
[354851325,1740737447050,-1426.0,0.00034053,2]
[354851327,1740737447059,-540.0,0.00034053,2]
[354851329,1740737447068,-909.0,0.00034053,2]
[354851331,1740737447078,-4034.0,0.00034053,2]
[354851333,1740737447087,-659.78,0.00034523,2]
[354851335,1740737447097,-4821.81717573,0.000349,2]
[354851337,1740737447106,-188507.45285834,0.00035,30]
[354851339,1740737447115,-150.0,0.00035,2]
[354851341,1740737447125,-150.0,0.00035,120]
[354851343,1740737447134,-151.0,0.00035,7]
[354851345,1740737447143,-151.0,0.00035,7]
[354851347,1740737447153,-151.0,0.00035,7]
[354851349,1740737447162,-151.0,0.00035,7]
[354851351,1740737447171,-151.0,0.00035,7]
[354851366,1740737447331,-151.0,0.00035,7]
[354851367,1740737447346,-151.0,0.00035,7]
[354851368,1740737447356,-151.0,0.00035,7]
[354851369,1740737447365,-151.0,0.00035,7]
[354851370,1740737447374,-151.0,0.00035,7]
[354851372,1740737447383,-151.0,0.00035,7]
[354851373,1740737447392,-151.0,0.00035,7]
[354851374,1740737447402,-151.0,0.00035,7]
[354851376,1740737447411,-794.64,0.00035049,2]
[354851378,1740737447420,-440.84,0.00035049,2]
[354851380,1740737447429,-440.84,0.00035049,2]
[354851382,1740737447438,-777.07,0.00035049,2]
[354851384,1740737447447,-777.07,0.00035049,2]
[354851386,1740737447456,-440.84,0.00035049,2]
[354851388,1740737447466,-777.07,0.00035049,2]
[354851390,1740737447475,-440.84,0.00035049,2]
[354851392,1740737447485,-440.84,0.00035049,2]
[354851394,1740737447494,-777.07,0.00035049,2]
[354851396,1740737447503,-777.07,0.00035049,2]
[354851398,1740737447514,-440.84,0.00035049,2]
[354851400,1740737447523,-777.07,0.00035049,2]
[354851402,1740737447532,-440.84,0.00035049,2]
[354851404,1740737447547,-777.07,0.00035049,2]
[354851406,1740737447556,-439.67,0.00035049,2]
[354851408,1740737447566,-777.07,0.00035049,2]
[354851410,1740737447575,-777.07,0.00035049,2]
[354851412,1740737447585,-238.63,0.00035323,2]
[354851414,1740737447595,-343.65,0.00035323,2]
[354851415,1740737447604,-151.75,0.00035323,2]
[354851417,1740737447613,-150.0,0.00035323,2]
[354851419,1740737447623,-153.2,0.00035323,2]
[354851422,1740737447633,-150.0,0.00035323,2]
[354851424,1740737447643,-150.97,0.00035323,2]
[354851426,1740737447652,-439.81,0.00035323,2]
[354851428,1740737447662,-150.0,0.00035323,2]
[354851429,1740737447671,-150.0,0.00035323,2]
[354851430,1740737447680,-150.0,0.00035323,2]
[354851431,1740737447690,-439.81,0.00035323,2]
[354851432,1740737447699,-150.0,0.00035323,2]
[354851433,1740737447709,-150.0,0.00035323,2]
[354851434,1740737447720,-439.81,0.00035323,2]
[354851435,1740737447729,-150.0,0.00035323,2]
[354851436,1740737447738,-150.0,0.00035323,2]
[354851437,1740737447747,-150.0,0.00035323,2]
[354851438,1740737447757,-150.0,0.00035323,2]
[354851441,1740737447768,-150.0,0.00035323,2]
[354851443,1740737447778,-150.0,0.00035323,2]
[354851445,1740737447787,-150.0,0.00035323,2]
[354851447,1740737447796,-150.0,0.00035323,2]
[354851449,1740737447805,-439.81,0.00035323,2]
[354851451,1740737447814,-150.0,0.00035323,2]
[354851453,1740737447824,-150.0,0.00035323,2]
[354851455,1740737447835,-439.81,0.00035323,2]
[354851457,1740737447844,-250.25,0.00035323,2]
[354851458,1740737447853,-439.81,0.00035323,2]
[354851460,1740737447863,-150.0,0.00035323,2]
[354851463,1740737447872,-150.0,0.00035323,2]